bitfinex-derivatives/quotes_SOLF0:USTF0_20250706
["timestamp","ask_amount","ask_price","bid_price","bid_amount"]
[1751785349425,13.96477971,148.11,148.07,2.33444031]
[1751785349621,8.94154341,148.1,148.07,2.33444031]
[1751785349826,2.33444031,148.12,148.07,2.33444031]
[1751785350028,13.96450354,148.11,148.08,6.7505]
[1751785350327,8.94126724,148.1,148.08,6.7505]
[1751785350521,2.33444031,148.12,148.08,6.7505]
[1751785350721,8.93787401,148.11,148.08,6.7505]
[1751785350918,8.93787401,148.1,148.08,9.08494031]
[1751785351121,9.08354031,148.12,148.08,9.08494031]
[1751785351321,8.93787401,148.11,148.08,9.08494031]
[1751785351621,9.08354031,148.12,148.08,9.08494031]
[1751785351818,8.9348367,148.11,148.08,9.08494031]
[1751785352023,9.08354031,148.12,148.08,9.08494031]
[1751785352227,8.9348367,148.11,148.09,6.7502]
[1751785352427,9.08354031,148.12,148.09,6.7502]
[1751785352628,8.93191306,148.11,148.09,6.7502]
[1751785352824,57.53614031,148.13,148.09,6.7502]
[1751785353127,8.92738829,148.12,148.09,6.7502]
[1751785353321,2.33444031,148.12,147.93,20.27]
[1751785353528,11.25712932,148.11,148.06,2.33316453]
[1751785353728,8.92396479,148.1,148.07,2.33316453]
[1751785353929,2.33316453,148.11,148.07,2.33316453]
[1751785354531,50.78551839,148.13,148.08,2.33241839]
[1751785354732,8.9216234,148.12,148.08,2.33241839]
[1751785354932,8.9216234,148.11,148.09,6.7502]
[1751785355127,57.53421839,148.13,148.09,9.08261839]
[1751785355326,8.99381011,148.12,148.09,9.08261839]
[1751785355522,8.99381011,148.11,148.09,9.08261839]
[1751785355727,55.2018,148.13,148.09,9.08261839]
[1751785355935,8.99164673,148.12,148.09,9.08261839]
[1751785356132,8.99164673,148.11,148.09,9.08261839]
[1751785356331,6.7487,148.13,148.1,9.08211839]
[1751785356534,8.98663288,148.12,148.1,9.08211839]
[1751785356729,6.7487,148.13,148.1,9.08211839]
[1751785356929,8.98665442,148.12,148.1,9.08211839]
[1751785357133,6.7487,148.13,148.1,9.08211839]
[1751785357332,8.98643943,148.12,148.1,9.08211839]
[1751785357643,6.7487,148.13,148.1,9.08211839]
[1751785357837,8.98416803,148.12,148.1,9.08211839]
[1751785358138,6.7487,148.13,148.1,6.7497]
[1751785358333,8.9843399,148.12,148.1,6.7497]
[1751785358534,6.7487,148.13,148.1,6.7497]
[1751785362046,11.37691839,148.14,148.11,6.7492]
[1751785362248,8.97382423,148.13,148.11,6.7492]
[1751785362448,11.37691839,148.14,148.11,6.7492]
[1751785362648,8.97258852,148.13,148.11,6.7492]
[1751785362850,6.7485,148.13,148.1,6.7496]
[1751785368254,4.62871839,148.14,148.09,9.08251839]
[1751785368450,11.32016778,148.13,148.09,9.08251839]
[1751785368650,2.2963,148.14,148.09,2.33241839]
[1751785368851,4.62871839,148.14,148.09,2.33241839]
[1751785369051,4.62871839,148.14,148.06,2.2336]
[1751785369254,2.33241839,148.13,148.09,2.33241839]
[1751785369555,6.749,148.12,148.09,9.08231839]
[1751785371752,6.749,148.12,148.09,6.7499]
[1751785371959,6.7494,148.11,148.08,9.08291839]
[1751785372160,6.7494,148.11,148.08,9.08292888]
[1751785373461,9.08152888,148.12,148.09,6.7502]
[1751785375563,9.08152888,148.12,148.08,9.08292888]
[1751785376461,6.7491,148.12,148.09,6.7503]
[1751785380567,6.7491,148.12,148.06,2.2336]
[1751785380772,6.7491,148.12,148.08,2.33242888]
[1751785381265,6.7491,148.12,148.09,6.75]
[1751785381865,2.33242888,148.11,148.05,2.3204]
[1751785382171,2.2963,148.14,148.05,2.3204]
[1751785382172,2.33242888,148.09,148.05,4.65282888]
[1751785382463,9.08272888,148.1,148.06,6.7514]
[1751785382669,9.00294481,148.09,148.06,6.7514]
[1751785382867,9.08272888,148.1,148.06,6.7514]
[1751785383070,9.00277515,148.09,148.06,6.7514]
[1751785383271,9.08272888,148.1,148.06,6.7514]
[1751785383471,9.0067675,148.09,148.06,6.7514]
[1751785383669,9.08272888,148.1,148.06,6.7514]
[1751785383871,9.00671212,148.09,148.06,6.7514]
[1751785384069,9.08272888,148.1,148.06,6.7514]
[1751785384272,9.00671212,148.09,148.06,6.7514]
[1751785384471,9.00671212,148.08,148.06,6.7514]
[1751785384668,6.7503,148.09,148.06,6.7514]
[1751785384872,9.01194778,148.08,148.06,6.7514]
[1751785385171,6.7503,148.09,148.06,6.7514]
[1751785385371,9.01599823,148.08,148.06,6.7514]
[1751785385670,6.7503,148.09,148.06,6.7514]
[1751785385866,9.0208141,148.08,148.06,6.7514]
[1751785386070,6.7503,148.09,148.06,6.7514]
[1751785386267,9.02607712,148.08,148.06,6.7514]
[1751785386471,6.7503,148.09,148.06,6.7514]
[1751785386673,9.02709506,148.08,148.06,6.7514]
[1751785386870,6.7503,148.09,148.06,6.7514]
[1751785387172,9.02689146,148.08,148.06,6.7514]
[1751785387472,6.7503,148.09,148.06,6.7514]
[1751785387672,8.99238342,148.08,148.06,6.7514]
[1751785387873,6.7503,148.09,148.06,6.7514]
[1751785388073,8.99240423,148.08,148.06,6.7514]
[1751785388275,6.7503,148.09,148.06,6.7514]
[1751785388576,8.99435662,148.08,148.06,6.7514]
[1751785388765,8.99435662,148.08,147.89,20.26]
[1751785388766,6.7527,148.04,147.89,20.26]
[1751785388971,2.33242888,148.02,147.97,2.33242888]
[1751785389271,2.33242888,148.04,147.99,2.33242888]
[1751785389468,8.98869594,148.03,147.99,2.33242888]
[1751785389668,2.33242888,148.04,147.99,2.33242888]
[1751785389876,8.98818055,148.03,147.99,2.33242888]
[1751785390078,9.08522888,148.04,148.0,6.7543]
[1751785390377,8.98793102,148.03,148.0,6.7543]
[1751785390576,9.08522888,148.04,148.0,6.7543]
[1751785390770,8.9855788,148.03,148.0,6.7543]
[1751785390970,9.08522888,148.04,148.0,6.7543]
[1751785391173,8.9855788,148.03,148.0,6.7543]
[1751785391373,9.08522888,148.04,148.0,6.7543]
[1751785391570,8.98251035,148.03,148.0,6.7543]
[1751785391776,2.2897,148.07,148.0,3.64727381]
[1751785391976,8.98316357,148.06,148.0,3.64727381]
[1751785392177,8.98316357,148.05,148.0,3.64727381]
[1751785392380,6.7522,148.05,148.01,6.7536]
[1751785392776,8.98109513,148.04,148.01,6.7536]
[1751785393080,6.7522,148.05,148.01,6.7536]
[1751785393280,8.9811167,148.04,148.01,6.7536]
[1751785393584,6.7518,148.06,148.02,6.7534]
[1751785393874,8.97895627,148.05,148.02,6.7534]
[1751785394081,6.7518,148.06,148.02,6.7534]
[1751785394272,8.97896601,148.05,148.02,6.7534]
[1751785394474,6.7518,148.06,148.02,6.7534]
[1751785394673,8.97677409,148.05,148.02,6.7534]
[1751785394880,6.7518,148.06,148.02,6.7534]
[1751785395076,8.97677374,148.05,148.02,6.7534]
[1751785395276,6.7518,148.06,148.02,6.7534]
[1751785395478,8.97513069,148.05,148.02,6.7534]
[1751785395683,6.7518,148.06,148.02,6.7534]
[1751785395881,8.97513069,148.05,148.02,6.7534]
[1751785396076,6.7518,148.06,148.02,6.7534]
[1751785396275,8.97513069,148.05,148.02,6.7534]
[1751785396476,6.7518,148.06,148.03,6.753]
[1751785396680,8.97295148,148.05,148.03,6.753]
[1751785396879,6.7518,148.06,148.03,6.753]
[1751785397280,2.2897,148.07,148.03,6.753]
[1751785397482,8.93606058,148.06,148.04,6.7525]
[1751785397779,45.92,148.09,148.04,6.7525]
[1751785397986,15.68755483,148.08,148.04,6.7525]
[1751785398288,8.93665483,148.07,148.04,6.7525]
[1751785398583,6.7509,148.08,148.04,6.7525]
[1751785398885,3.64727381,148.1,148.02,3.64727381]
[1751785399077,8.93625822,148.09,148.02,3.64727381]
[1751785399279,8.93625822,148.08,148.02,3.64727381]
[1751785399579,6.7508,148.08,148.04,6.7521]
[1751785401985,3.64727381,148.1,148.05,6.7518]
[1751785401986,6.7505,148.09,148.05,6.7518]
[1751785402388,45.92,148.11,148.05,3.64490409]
[1751785402684,8.93805869,148.1,148.05,3.64490409]
[1751785402887,52.6697,148.11,148.07,6.7509]
[1751785405086,6.7499,148.1,148.07,6.7509]
[1751785408691,52.6696,148.11,148.07,6.7509]
[1751785408889,8.99841203,148.1,148.07,6.7509]
[1751785409089,52.6696,148.11,148.07,6.7509]
[1751785409289,8.99841203,148.1,148.07,6.7509]
[1751785409488,52.6696,148.11,148.07,6.7509]
[1751785409687,8.99883735,148.1,148.07,6.7509]
[1751785409888,52.6696,148.11,148.07,6.7509]
[1751785410091,8.99883735,148.1,148.07,6.7509]
[1751785410292,52.6696,148.11,148.07,6.7509]
[1751785410594,8.99952915,148.1,148.07,6.7509]
[1751785410799,52.6696,148.11,148.07,6.7509]
[1751785410994,8.99952915,148.1,148.07,6.7509]
[1751785411197,52.6696,148.11,148.05,3.64490409]
[1751785411394,8.99955853,148.1,148.05,3.64490409]
[1751785411597,52.6696,148.11,148.05,3.64490409]
[1751785411799,8.99993355,148.1,148.07,6.7508]
[1751785412096,52.6696,148.11,148.07,6.7508]
[1751785412296,8.99991916,148.1,148.07,6.7508]
[1751785412496,52.6696,148.11,148.07,6.7508]
[1751785412697,9.00033341,148.1,148.07,6.7508]
[1751785412998,52.6696,148.11,148.07,6.7508]
[1751785413195,9.00033341,148.1,148.07,6.7508]
[1751785413386,52.6696,148.11,148.07,6.7508]
[1751785413591,9.00074303,148.1,148.07,6.7508]
[1751785413794,6.7496,148.11,148.08,6.7506]
[1751785413997,9.00074303,148.1,148.05,3.64490409]
[1751785414195,6.749,148.12,148.05,3.64490409]
[1751785414395,9.00112742,148.11,148.08,6.7504]
[1751785414588,9.00112742,148.1,148.08,6.7504]
[1751785414792,6.749,148.12,148.08,6.7504]
[1751785414992,9.00142364,148.11,148.08,6.7504]
[1751785415195,9.00142364,148.1,148.08,6.7504]
[1751785415391,6.749,148.12,148.08,6.7504]
[1751785415597,8.99564284,148.11,148.08,6.7504]
[1751785415796,8.99564284,148.1,148.08,9.08287056]
[1751785415995,9.08147056,148.12,148.08,9.08287056]
[1751785416192,8.99272414,148.11,148.1,2.33247056]
[1751785416390,8.99272414,148.11,148.09,2.33247056]
[1751785416695,48.25247056,148.14,148.09,2.33247056]
[1751785416896,15.74247402,148.13,148.09,9.08237056]
[1751785417096,8.99367402,148.12,148.09,9.08237056]
[1751785417296,6.7488,148.13,148.09,9.08237056]
[1751785417498,8.99342374,148.12,148.09,9.08237056]
[1751785417699,6.7488,148.13,148.09,9.08237056]
[1751785417899,8.9928863,148.12,148.09,9.08237056]
[1751785418198,6.7488,148.13,148.1,6.7498]
[1751785418402,8.99211112,148.12,148.1,6.7498]
[1751785418602,6.7488,148.13,148.1,6.7498]
[1751785418802,8.99190567,148.12,148.1,6.7498]
[1751785419002,6.7488,148.13,148.1,6.7498]
[1751785419203,8.99258505,148.12,148.1,6.7498]
[1751785419403,6.7488,148.13,148.1,6.7498]
[1751785419603,8.99442509,148.12,148.11,6.7494]
[1751785426305,45.92,148.14,148.11,2.33247056]
[1751785426807,2.1901,148.15,148.12,6.7489]
[1751785427101,8.99586559,148.14,148.11,2.33247056]
[1751785427307,2.1901,148.15,148.11,2.33247056]
[1751785427602,8.99394496,148.14,148.11,9.08147056]
[1751785427804,2.1901,148.15,148.11,2.33247056]
[1751785428005,9.01198164,148.14,148.11,2.33247056]
[1751785428305,2.1901,148.15,148.11,2.33247056]
[1751785428500,9.01020495,148.14,148.11,2.33247056]
[1751785428705,2.1901,148.15,148.12,6.7487]
[1751785428905,9.00880052,148.14,148.12,6.7487]
[1751785429106,2.1901,148.15,148.12,6.7487]
[1751785429302,2.1901,148.15,148.13,6.7485]
[1751785432613,2.33247056,148.16,148.13,6.7485]
[1751785432814,9.00303751,148.15,148.13,6.7485]
[1751785433005,2.33247056,148.16,148.13,6.7485]
[1751785433207,9.00303751,148.15,148.14,6.748]
[1751785433403,9.00303751,148.15,148.12,2.33247056]
[1751785433608,2.33247056,148.16,148.12,2.33247056]
[1751785433810,9.00197856,148.15,148.13,6.7481]
[1751785434018,2.33247056,148.16,148.12,2.33247056]
[1751785434215,9.00197856,148.15,148.14,6.748]
[1751785436813,9.00559131,148.15,148.14,6.748]
[1751785437621,9.00559131,148.15,148.13,6.7483]
[1751785437819,9.07917056,148.17,148.13,6.7483]
[1751785438019,9.02541098,148.16,148.13,6.7483]
[1751785438218,9.02541098,148.15,148.13,6.7483]
[1751785438521,9.02770847,148.14,148.13,6.7483]
[1751785438720,9.02770847,148.14,148.12,6.7488]
[1751785438920,9.07977056,148.16,148.12,6.7488]
[1751785439218,9.02751411,148.15,148.12,6.7488]
[1751785439417,2.33209878,148.13,147.97,13.5116]
[1751785439617,2.33209878,148.08,148.02,2.33209878]
[1751785439819,9.02751411,148.07,148.06,6.7517]
[1751785440122,14.11950181,148.07,148.04,2.33209878]
[1751785440321,5.0919877,148.06,148.04,2.33209878]
[1751785440523,9.08249878,148.09,148.05,6.7519]
[1751785440818,14.10912988,148.08,148.05,6.7519]
[1751785441021,14.10912988,148.07,148.05,6.7519]
[1751785441222,5.0818154,148.06,148.05,6.7519]
[1751785446323,3.6462511,148.11,148.07,6.7512]
[1751785446522,19.11868639,148.1,148.07,6.7512]
[1751785446723,14.0272074,148.09,148.07,6.7512]
[1751785446926,14.0272074,148.08,148.07,6.7512]
[1751785448020,5.02342452,148.08,148.07,6.7512]
[1751785448822,2.2265,148.12,148.09,6.7501]
[1751785449018,14.0236267,148.11,148.09,6.7501]
[1751785449214,14.0236267,148.1,148.09,6.7501]
[1751785449414,5.02537493,148.1,148.09,6.7501]
[1751785450022,2.2265,148.12,148.09,6.7501]
[1751785450225,14.02490912,148.11,148.09,6.7501]
[1751785450425,5.02553091,148.1,148.09,6.7501]
[1751785450625,5.02560137,148.1,148.09,6.7501]
[1751785456236,19.81840602,148.14,148.1,6.7498]
[1751785456430,19.21179928,148.13,148.1,6.7498]
[1751785456731,19.21179928,148.12,148.1,6.7498]
[1751785456928,14.07814241,148.11,148.1,6.7498]
[1751785462125,5.0489941,148.11,148.1,6.7498]
[1751785463732,5.0489941,148.11,148.1,9.08122056]
[1751785465335,2.33142056,148.15,148.1,9.08122056]
[1751785465336,2.33142056,148.15,148.13,6.7481]
[1751785465541,19.22087673,148.14,148.13,6.7481]
[1751785466236,14.08746649,148.14,148.13,6.7481]
[1751785466437,19.2205611,148.14,148.13,6.7481]
[1751785466944,19.2205611,148.14,148.12,6.7488]
[1751785467145,14.08746649,148.13,148.12,6.7488]
[1751785468143,14.08705467,148.13,148.12,6.7488]
[1751785471149,5.05920224,148.13,148.12,6.7488]
[1751785471449,2.203,148.16,148.13,6.7484]
[1751785471747,19.23324212,148.15,148.13,6.7484]
[1751785471945,19.23324212,148.14,148.13,6.7484]
[1751785473047,19.23324212,148.14,148.06,2.4326]
[1751785473243,14.10366608,148.13,148.06,6.0766463]
[1751785473442,14.10366608,148.12,148.06,6.0766463]
[1751785473643,5.05026287,148.11,148.1,6.7497]
[1751785478945,5.05026287,148.11,148.09,6.7502]
[1751785479151,14.09304515,148.1,148.06,2.4326]
[1751785479354,5.05026287,148.09,148.06,2.4326]
[1751785479646,5.05026287,148.08,148.06,2.4326]
[1751785479950,10.3927463,148.13,148.09,6.7502]
[1751785480149,19.26443023,148.12,148.09,6.7502]
[1751785480351,19.26443023,148.11,148.09,6.7502]
[1751785480547,14.11893664,148.1,148.09,6.7502]
[1751785481151,9.04326975,148.1,148.09,6.7502]
[1751785481354,14.10803585,148.1,148.09,6.7502]
[1751785483447,5.0647661,148.1,148.09,6.7502]
[1751785486155,10.3927463,148.13,148.1,6.7498]
[1751785486349,19.22821854,148.12,148.1,6.7498]
[1751785486650,14.09393357,148.11,148.1,6.7498]
[1751785487045,14.09474853,148.11,148.1,6.7498]
[1751785489156,19.2329519,148.11,148.1,6.7498]
[1751785489348,14.17708897,148.11,148.1,6.7498]
[1751785489549,19.23599486,148.11,148.1,6.7498]
[1751785495858,14.17708897,148.11,148.1,6.7498]
[1751785496656,14.17708897,148.11,148.06,2.4326]
[1751785496860,9.0388856,148.1,148.07,2.33239748]
[1751785497053,2.33239748,148.12,148.07,2.33239748]
[1751785497255,9.06070976,148.11,148.07,2.33239748]
[1751785497454,9.06070976,148.1,148.07,2.33239748]
[1751785497657,2.33239748,148.12,148.07,2.33239748]
[1751785497859,9.06080785,148.11,148.07,2.33239748]
[1751785498058,9.06080785,148.1,148.07,2.33239748]
[1751785498363,2.33239748,148.12,148.07,2.33239748]
[1751785498663,9.06091209,148.11,148.07,2.33239748]
[1751785498862,9.06091209,148.1,148.07,2.33239748]
[1751785499051,2.33239748,148.12,148.07,2.33239748]
[1751785499252,2.33239748,148.08,148.05,46.32]
[1751785499451,11.39330957,148.07,148.06,6.7514]
[1751785499659,11.39330957,148.07,148.02,4.66679748]
[1751785499860,2.33239748,148.07,148.02,4.66679748]
[1751785500262,2.33239748,148.05,148.01,634.03229748]
[1751785501265,2.33239748,148.05,148.01,51.07229748]
[1751785501560,2.33239748,148.05,148.03,6.7528]
[1751785501762,3.64748556,148.08,148.01,48.7399]
[1751785501960,9.0213239,148.07,148.01,48.7399]
[1751785502153,9.0213239,148.06,148.04,6.7523]
[1751785502355,10.39858556,148.08,148.04,6.7523]
[1751785502554,9.0171367,148.07,148.04,6.7523]
[1751785502752,9.0171367,148.06,148.04,6.7523]
[1751785502954,10.39858556,148.08,148.04,6.7523]
[1751785503160,9.0171367,148.07,148.04,6.7523]
[1751785503362,9.0171367,148.06,148.04,6.7523]
[1751785503561,10.39858556,148.08,148.05,6.7521]
[1751785503763,9.0135584,148.07,148.05,6.7521]
[1751785504061,10.39858556,148.08,148.05,6.7521]
[1751785504262,9.01341013,148.07,148.05,6.7521]
[1751785504458,9.0112565,148.06,148.05,6.7521]
[1751785505366,9.0112565,148.06,148.04,6.7524]
[1751785505561,6.7514,148.07,148.04,6.7524]
[1751785505761,9.00862442,148.06,148.04,6.7524]
[1751785505963,6.7514,148.07,148.04,6.7524]
[1751785506163,9.00363248,148.06,148.04,6.7524]
[1751785506363,6.7514,148.07,148.04,6.7524]
[1751785506565,8.98312745,148.06,148.04,6.7524]
[1751785506763,6.7514,148.07,148.04,6.7524]
[1751785506964,8.98312745,148.06,148.04,6.7524]
[1751785507159,6.7514,148.07,148.04,6.7524]
[1751785508260,12.62709237,148.06,148.01,48.7399]
[1751785508460,3.64748556,148.04,147.97,48.5614]
[1751785508664,8.98014063,148.03,147.97,48.5614]
[1751785508865,12.62877111,148.02,147.97,46.22]
[1751785509065,3.64748556,148.02,147.97,46.22]
[1751785509266,5.05261108,148.01,147.97,46.22]
[1751785509643,10.40148556,148.02,147.98,6.7551]
[1751785509773,5.0468645,148.01,147.97,46.22]
[1751785510064,3.64748556,148.04,147.97,46.22]
[1751785510263,14.0228413,148.03,147.97,46.22]
[1751785510465,5.04714143,148.02,147.97,46.22]
[1751785510665,3.64748556,148.04,147.97,46.22]
[1751785510865,13.91611652,148.03,147.97,46.22]
[1751785511165,4.9450363,148.02,147.97,46.22]
[1751785511363,3.64748556,148.04,147.97,46.22]
[1751785511564,4.94263263,148.03,147.97,46.22]
[1751785511766,2.4247,148.05,147.97,46.22]
[1751785511969,4.94235177,148.04,147.97,46.22]
[1751785512168,4.94235177,148.03,147.97,46.22]
[1751785512371,2.4247,148.05,147.97,46.22]
[1751785512567,4.94093689,148.04,148.01,6.7537]
[1751785512768,9.1772,148.05,148.01,6.7537]
[1751785512967,4.94093689,148.04,148.01,6.7537]
[1751785513171,9.1772,148.05,148.01,6.7537]
[1751785513371,4.9409344,148.04,148.01,6.7537]
[1751785513568,9.1772,148.05,148.01,6.7537]
[1751785513864,4.93973688,148.04,148.01,6.7537]
[1751785514059,9.1772,148.05,148.01,6.7537]
[1751785514264,4.93973321,148.04,148.01,6.7537]
[1751785514566,10.39938556,148.06,147.98,3.64748556]
[1751785514769,10.39938556,148.06,147.99,2.2935]
[1751785514971,10.39938556,148.06,148.02,6.7532]
[1751785515565,4.94912322,148.05,148.02,6.7532]
[1751785515865,10.39938556,148.06,148.02,6.7532]
[1751785516166,4.9489002,148.05,148.03,6.7531]
[1751785516366,10.39938556,148.06,148.03,6.7531]
[1751785516566,4.94869082,148.05,148.03,6.7531]
[1751785516767,10.39938556,148.06,148.03,6.7531]
[1751785516958,4.94869085,148.05,148.03,6.7531]
[1751785517160,6.7519,148.06,148.03,6.7531]
[1751785517361,4.94880834,148.05,148.03,6.7531]
[1751785517563,6.7519,148.06,148.03,6.7531]
[1751785517761,4.94859631,148.05,148.03,6.7531]
[1751785517962,6.7519,148.06,148.03,6.7531]
[1751785518164,4.94859631,148.05,148.03,6.7531]
[1751785518367,6.7519,148.06,148.03,6.7531]
[1751785518566,4.94842329,148.05,148.03,6.7531]
[1751785518762,6.7519,148.06,148.03,6.7531]
[1751785519073,4.94842578,148.05,148.03,6.7531]
[1751785519277,6.7519,148.06,148.03,6.7531]
[1751785519474,4.9481677,148.05,148.03,6.7531]
[1751785519681,6.7519,148.06,148.03,6.7531]
[1751785519884,4.94817019,148.05,148.03,6.7531]
[1751785520181,6.7519,148.06,148.03,6.7531]
[1751785520381,4.94804787,148.05,148.02,6.7535]
[1751785520582,6.7519,148.06,148.02,6.7535]
[1751785520785,4.94798904,148.05,148.02,6.7535]
[1751785521080,6.7519,148.06,148.02,6.7535]
[1751785521283,11.70029564,148.05,148.02,6.7535]
[1751785521477,6.7524,148.05,148.02,6.7535]
[1751785522182,46.22,148.08,148.03,6.7532]
[1751785522381,2.33444099,148.06,148.02,2.33444099]
[1751785522582,4.94782066,148.05,148.02,2.33444099]
[1751785522782,2.33444099,148.06,148.03,6.7529]
[1751785522979,4.94784152,148.05,148.03,6.7529]
[1751785523178,2.33444099,148.06,148.03,6.7529]
[1751785523381,4.94796244,148.05,148.04,6.7528]
[1751785524082,4.94796244,148.05,148.03,6.7531]
[1751785524282,2.33444099,148.06,148.03,6.7531]
[1751785524476,4.94779466,148.05,148.03,6.7531]
[1751785524683,2.33444099,148.06,148.03,6.7531]
[1751785525682,9.08624099,148.06,148.03,6.7531]
[1751785527186,4.95966761,148.05,148.03,6.7531]
[1751785527386,9.08624099,148.06,148.03,6.7531]
[1751785527581,4.95988675,148.05,148.03,6.7531]
[1751785527781,9.08624099,148.06,148.03,6.7531]
[1751785527983,4.95988675,148.05,148.03,6.7531]
[1751785528176,9.08624099,148.06,148.03,6.7531]
[1751785528485,4.96069093,148.05,148.03,6.7531]
[1751785528688,9.08624099,148.06,148.03,6.7531]
[1751785528885,4.96069093,148.05,148.03,6.7531]
[1751785529086,9.08624099,148.06,148.03,6.7531]
[1751785529287,4.96079219,148.05,148.03,6.7531]
[1751785529486,9.08624099,148.06,148.03,6.7531]
[1751785529687,4.9610422,148.05,148.03,6.7531]
[1751785529890,9.08624099,148.06,148.03,6.7531]
[1751785530081,4.9610422,148.05,148.03,6.7531]
[1751785530287,9.08624099,148.06,148.03,6.7531]
[1751785530489,4.97257187,148.05,148.03,6.7531]
[1751785530688,9.08624099,148.06,148.03,6.7531]
[1751785530892,4.97257187,148.05,148.03,6.7531]
[1751785531096,2.33444099,148.05,148.03,6.7531]
[1751785532095,2.3345662,148.05,148.03,6.7531]
[1751785535595,4.97636142,148.04,148.03,6.7531]
[1751785536190,2.3345662,148.05,148.03,6.7531]
[1751785537394,2.3345662,148.05,148.04,6.7527]
[1751785537589,7.31302909,148.05,148.04,6.7527]
[1751785537791,4.97846289,148.05,148.04,6.7527]
[1751785539196,46.22,148.08,148.05,6.752]
[1751785539496,4.63868478,148.1,148.04,2.33448478]
[1751785539690,4.97935999,148.09,148.04,2.33448478]
[1751785539895,4.97935999,148.08,148.06,2.33448478]
[1751785540095,2.33448478,148.1,148.08,6.7509]
[1751785540292,4.98413961,148.09,148.08,6.7509]
[1751785540596,4.63538478,148.14,148.08,2.33448478]
[1751785540890,16.27725255,148.13,148.1,6.7496]
[1751785541096,13.94276777,148.12,148.1,6.7496]
[1751785541296,4.98232236,148.11,148.1,6.7496]
[1751785542398,4.9836867,148.11,148.1,6.7496]
[1751785550096,4.9836867,148.11,148.09,6.7504]
[1751785550303,5.05351764,148.1,148.03,3.64385482]
[1751785550497,5.05351764,148.09,148.03,3.64385482]
[1751785550702,5.05351764,148.08,148.03,3.64385482]
[1751785550903,6.7502,148.1,148.06,6.7514]
[1751785551102,5.05386238,148.09,148.06,6.7514]
[1751785551303,5.05386238,148.08,148.06,6.7514]
[1751785551505,6.7502,148.1,148.06,6.7514]
[1751785551704,5.05358372,148.09,148.07,6.7513]
[1751785551900,5.05358372,148.08,148.07,6.7513]
[1751785552506,6.7492,148.12,148.09,6.7505]
[1751785552701,5.0527949,148.11,148.09,6.7505]
[1751785552901,5.0527949,148.1,148.09,6.7505]
[1751785559204,2.3009,148.14,148.06,3.64385482]
[1751785559406,14.02433727,148.13,148.11,6.7491]
[1751785559606,5.03086815,148.12,148.11,6.7491]
[1751785566704,5.03086815,148.12,148.09,6.7502]
[1751785566910,2.33220587,148.11,148.07,48.43220587]
[1751785567308,9.08200587,148.11,148.08,6.7508]
[1751785570217,5.03136407,148.1,148.08,6.7508]
[1751785570416,9.08200587,148.11,148.08,6.7508]
[1751785570613,5.03198656,148.1,148.08,6.7508]
[1751785570814,9.08200587,148.11,148.08,6.7508]
[1751785571717,5.03236164,148.1,148.08,6.7508]
[1751785571919,5.03236164,148.09,148.08,6.7508]
[1751785585730,9.08140587,148.12,148.09,6.7503]
[1751785585930,9.03320477,148.11,148.09,6.7503]
[1751785586136,9.03320477,148.1,148.09,6.7503]
[1751785587142,9.03320477,148.1,148.07,2.33220587]
[1751785587143,9.03320477,148.1,148.08,6.7507]
[1751785587332,9.03398668,148.09,148.08,6.7507]
[1751785591148,14.07574112,148.09,148.08,6.7507]
[1751785599955,14.07646831,148.09,148.08,6.7507]
[1751785602855,9.03398668,148.09,148.08,6.7507]
[1751785603057,14.07631494,148.09,148.08,6.7507]
[1751785605259,14.07631494,148.09,148.06,2.33220587]
[1751785605559,5.04232826,148.08,148.06,2.33220587]
[1751785605754,5.04232826,148.07,148.06,2.33220587]
[1751785606561,5.04232826,148.07,148.06,9.08400587]
[1751785609062,9.08180587,148.11,148.08,6.7509]
[1751785609263,19.16373554,148.1,148.08,6.7509]
[1751785609562,14.0684658,148.09,148.08,6.7509]
[1751785610167,14.0684658,148.09,148.06,6.7517]
[1751785610366,14.0684658,148.08,148.06,6.7517]
[1751785610562,5.03232662,148.07,148.06,6.7517]
[1751785611165,21.50082316,148.07,148.01,2.33220587]
[1751785611465,14.07159257,148.06,148.01,2.33220587]
[1751785611761,2.33220587,148.07,148.01,2.33220587]
[1751785611762,14.07159257,148.05,148.01,2.33220587]
[1751785611964,5.03232662,148.04,148.01,2.33220587]
[1751785612163,9.08380587,148.07,148.01,2.33220587]